bitfinex/quotes_SOLUSD_20250920
["timestamp","ask_amount","ask_price","bid_price","bid_amount"]
[1758352959913,36.93753226,239.63,239.62,0.2]
[1758352965945,37.59753226,239.63,239.62,0.2]
[1758352967249,41.77063245,239.63,239.62,0.2]
[1758352967543,40.09730734,239.63,239.62,0.2]
[1758352973758,39.43730734,239.63,239.62,0.2]
[1758352975653,40.09730734,239.63,239.62,0.2]
[1758352977051,4.06420715,239.63,239.62,0.2]
[1758352981655,4.76420715,239.63,239.62,0.2]
[1758352984056,3.5144877,239.63,239.62,0.2]
[1758352987769,5.46764776,239.63,239.62,0.2]
[1758352988558,3.5144877,239.63,239.62,0.2]
[1758353001262,7.68758789,239.63,239.62,0.2]
[1758353001463,7.68758789,239.63,239.62,31.96]
[1758353001672,7.68758789,239.63,239.62,0.2]
[1758353001970,9.64074795,239.63,239.62,0.2]
[1758353002372,11.31400306,239.63,239.62,0.2]
[1758353003781,14.83279879,239.63,239.62,0.2]
[1758353009280,11.31400306,239.63,239.62,0.2]
[1758353009793,14.83279879,239.63,239.62,0.2]
[1758353012198,11.31400306,239.63,239.62,0.2]
[1758353021508,11.5983262,239.63,239.62,0.2]
[1758353021808,15.11712193,239.63,239.62,0.2]
[1758353032629,11.5983262,239.63,239.62,0.2]
[1758353033738,15.11712193,239.63,239.62,0.2]
[1758353034310,11.5983262,239.63,239.62,0.2]
[1758353036231,15.11712193,239.63,239.62,0.2]
[1758353037440,12.87963873,239.63,239.62,0.2]
[1758353037625,8.660843,239.63,239.62,0.2]
[1758353037834,11.33400306,239.63,239.62,0.2]
[1758353038211,14.85279879,239.63,239.62,0.2]
[1758353038438,14.13279879,239.63,239.62,0.2]
[1758353039442,10.61400306,239.63,239.62,0.2]
[1758353039827,11.33400306,239.63,239.62,0.2]
[1758353040214,10.61400306,239.63,239.62,0.2]
[1758353040835,35.68774281,239.63,239.62,0.72]
[1758353041712,4.48774281,239.63,239.62,4.89327435]
[1758353041934,2.8144877,239.63,239.62,4.89327435]
[1758353043246,1.95316006,239.68,239.63,13.59559401]
[1758353043431,7.70722213,239.67,239.64,32.28]
[1758353043618,2.81394778,239.66,239.65,0.52]
[1758353047336,2.81394778,239.66,239.64,32.28]
[1758353047520,2.81394778,239.65,239.64,32.28]
[1758353048621,2.81394778,239.65,239.64,31.76]
[1758353048836,2.81394778,239.65,239.63,0.52]
[1758353049136,2.81394778,239.65,239.64,31.74]
[1758353049340,46.56021213,239.66,239.64,32.26]
[1758353049544,2.81394778,239.65,239.64,32.26]
[1758353050243,31.2,239.66,239.64,32.26]
[1758353053050,31.2,239.66,239.64,31.74]
[1758353053426,43.74626435,239.66,239.65,31.74]
[1758353053626,46.55545233,239.66,239.65,31.74]
[1758353069945,47.23545233,239.66,239.65,31.74]
[1758353072579,48.48503966,239.66,239.65,31.74]
[1758353073444,48.48503966,239.66,239.62,4.37325609]
[1758353073657,2.80918798,239.65,239.63,31.74]
[1758353075053,3.48918798,239.65,239.63,31.74]
[1758353076666,34.68918798,239.63,239.62,31.94]
[1758353076864,38.86228817,239.63,239.62,31.94]
[1758353077165,51.4101268,239.63,239.62,31.94]
[1758353077356,51.4101268,239.63,239.62,0.2]
[1758353077560,51.4101268,239.63,239.62,31.94]
[1758353078869,47.23702661,239.63,239.62,31.94]
[1758353079374,47.24008231,239.63,239.62,31.94]
[1758353083570,51.4131825,239.63,239.62,31.94]
[1758353090453,51.4131825,239.63,239.62,0.2]
[1758353090684,54.9284871,239.63,239.62,31.94]
[1758353092289,23.7284871,239.63,239.62,31.94]
[1758353093171,24.01281024,239.63,239.62,0.2]
[1758353093376,24.01281024,239.63,239.61,0.1]
[1758353093377,20.49750564,239.63,239.61,0.1]
[1758353093568,7.57970463,239.62,239.61,0.1]
[1758353093977,20.81016795,239.62,239.61,0.1]
[1758353095491,24.9834423,239.62,239.61,0.1]
[1758353098172,21.46556868,239.62,239.61,0.1]
[1758353100477,25.26776544,239.62,239.61,0.1]
[1758353100772,21.74989182,239.62,239.61,0.1]
[1758353101294,25.26412992,239.62,239.61,0.1]
[1758353102989,21.74989182,239.62,239.61,0.1]
[1758353103297,25.26316276,239.62,239.61,0.1]
[1758353108475,25.26316276,239.62,239.59,0.2]
[1758353108476,31.2,239.6,239.59,0.2]
[1758353108680,35.26183101,239.6,239.59,0.2]
[1758353108882,35.91183101,239.6,239.59,0.2]
[1758353109099,37.58536615,239.6,239.59,0.2]
[1758353109802,42.46385333,239.6,239.59,0.2]
[1758353112203,42.74817647,239.6,239.59,0.2]
[1758353115200,0.28432314,239.59,239.58,0.2]
[1758353115399,3.74656682,239.59,239.58,0.2]
[1758353115790,5.42038207,239.59,239.58,0.2]
[1758353116184,9.59417897,239.59,239.58,0.2]
[1758353117000,31.48432314,239.56,239.55,0.2]
[1758353117202,31.2,239.54,239.53,0.2]
[1758353117399,0.28432314,239.53,239.51,0.1]
[1758353117602,7.25600954,239.53,239.51,0.1]
[1758353118207,11.43085193,239.53,239.51,0.1]
[1758353118694,13.10501747,239.53,239.51,0.1]
[1758353120413,9.59557475,239.53,239.51,0.1]
[1758353122306,0.28432314,239.49,239.46,0.2]
[1758353122507,5.70101863,239.48,239.46,0.2]
[1758353123204,4.56322081,239.48,239.46,0.2]
[1758353123410,7.37546449,239.48,239.46,0.2]
[1758353123606,35.76322081,239.48,239.46,0.2]
[1758353123912,38.57546449,239.48,239.46,0.2]
[1758353124298,42.75117853,239.48,239.46,0.2]
[1758353127605,42.75117853,239.48,239.47,0.72]
[1758353127606,35.68668954,239.48,239.47,0.72]
[1758353127788,34.82889767,239.48,239.47,0.72]
[1758353127986,3.62889767,239.48,239.47,0.72]
[1758353130409,1.67444586,239.48,239.47,0.72]
[1758353130596,3.62889767,239.48,239.47,0.72]
[1758353131615,1.67444586,239.48,239.47,0.72]
[1758353131914,3.62889767,239.48,239.47,0.72]
[1758353133593,3.62889767,239.48,239.47,0.2]
[1758353133789,34.82889767,239.48,239.47,0.2]
[1758353134413,3.62889767,239.48,239.47,0.2]
[1758353136617,3.62889767,239.48,239.47,0.72]
[1758353138194,3.62889767,239.48,239.47,0.2]
[1758353140899,3.62889767,239.48,239.47,31.96]
[1758353145421,3.62889767,239.48,239.47,0.2]
[1758353145613,38.31946567,239.48,239.47,0.2]
[1758353145812,38.31946567,239.48,239.47,31.96]
[1758353146324,38.31946567,239.48,239.47,0.2]
[1758353146519,38.31946567,239.48,239.47,31.96]
[1758353147911,36.64501981,239.48,239.47,31.96]
[1758353150503,35.95501981,239.48,239.47,31.96]
[1758353154716,36.64501981,239.48,239.47,31.96]
[1758353155817,35.95501981,239.48,239.47,31.96]
[1758353164224,34.000568,239.48,239.47,31.96]
[1758353164425,2.800568,239.48,239.47,50.25148243]
[1758353166126,33.15445181,239.52,239.47,60.69120348]
[1758353166334,2.8149828,239.51,239.48,0.52]
[1758353166526,2.8149828,239.5,239.49,31.78]
[1758353166722,2.8149828,239.5,239.49,32.3]
[1758353167436,2.8149828,239.5,239.49,36.47553968]
[1758353168217,2.8149828,239.5,239.49,35.95553968]
[1758353168835,2.8149828,239.5,239.49,36.47553968]
[1758353169034,2.8149828,239.5,239.48,4.17571404]
[1758353169224,2.8149828,239.49,239.48,4.17571404]
[1758353169420,2.8149828,239.49,239.48,35.93571404]
[1758353171228,3.5049828,239.49,239.48,35.93571404]
[1758353172640,3.5049828,239.49,239.48,4.17571404]
[1758353172837,3.5049828,239.49,239.48,31.76]
[1758353176237,3.5049828,239.49,239.47,4.37588839]
[1758353176452,2.8149828,239.48,239.47,4.37588839]
[1758353176650,2.8149828,239.48,239.47,36.13588839]
[1758353177449,2.8149828,239.48,239.47,48.47806802]
[1758353177745,2.8149828,239.48,239.47,16.71806802]
[1758353178043,2.8149828,239.48,239.47,48.47806802]
[1758353178449,2.8149828,239.48,239.47,16.71806802]
[1758353178751,2.8149828,239.48,239.47,48.47806802]
[1758353181140,2.8149828,239.48,239.47,36.13588839]
[1758353181329,2.8149828,239.48,239.47,4.37588839]
[1758353181534,2.8149828,239.48,239.47,36.13588839]
[1758353182055,2.8149828,239.48,239.47,4.37588839]
[1758353182249,2.8149828,239.48,239.47,36.13588839]
[1758353183930,2.8149828,239.48,239.47,4.37588839]
[1758353184135,2.8149828,239.48,239.47,36.13588839]
[1758353191566,2.8149828,239.48,239.47,4.37588839]
[1758353191745,3.5349828,239.48,239.47,31.96]
[1758353192847,3.5349828,239.48,239.47,0.2]
[1758353193047,3.5349828,239.48,239.47,31.96]
[1758353193861,3.5349828,239.48,239.47,0.2]
[1758353194067,3.5349828,239.48,239.47,31.96]
[1758353198270,2.8149828,239.48,239.47,31.96]
[1758353198476,3.5349828,239.48,239.47,31.96]
[1758353199964,3.5349828,239.48,239.47,0.2]
[1758353200170,3.5349828,239.48,239.47,31.96]
[1758353204967,3.5349828,239.48,239.47,0.2]
[1758353205373,3.5349828,239.48,239.47,31.96]
[1758353206664,2.8149828,239.48,239.47,31.96]
[1758353214172,2.8149828,239.48,239.47,0.2]
[1758353214477,3.5349828,239.48,239.47,31.96]
[1758353214878,2.8149828,239.48,239.47,31.96]
[1758353216781,2.8149828,239.48,239.47,36.13588842]
[1758353216978,2.8149828,239.48,239.47,31.96]
[1758353217275,3.4849828,239.48,239.47,31.96]
[1758353218156,2.8149828,239.48,239.47,31.96]
[1758353218375,3.4849828,239.48,239.47,31.96]
[1758353218672,2.8149828,239.48,239.47,31.96]
[1758353218884,3.4849828,239.48,239.47,0.2]
[1758353219181,3.4849828,239.48,239.47,31.96]
[1758353219676,3.4849828,239.48,239.47,0.2]
[1758353219979,3.4849828,239.48,239.47,31.96]
[1758353220278,8.91153811,239.48,239.47,31.96]
[1758353220782,8.91153811,239.48,239.47,0.2]
[1758353220971,8.91153811,239.48,239.47,31.96]
[1758353222080,8.91153811,239.48,239.47,0.2]
[1758353222277,8.91153811,239.48,239.47,31.96]
[1758353222665,10.16290081,239.48,239.47,31.96]
[1758353230682,10.16290081,239.48,239.47,0.2]
[1758353230991,10.16290081,239.48,239.47,31.96]
[1758353233087,10.16414258,239.48,239.47,31.96]
[1758353233872,10.8684048,239.48,239.47,31.96]
[1758353239095,10.8684048,239.48,239.47,0.2]
[1758353239396,10.8684048,239.48,239.47,31.96]
[1758353240782,10.8684048,239.48,239.47,0.2]
[1758353241083,10.8684048,239.48,239.47,31.96]
[1758353242692,10.8684048,239.48,239.47,31.90817722]
[1758353243273,10.8684048,239.48,239.47,0.14817722]
[1758353243470,10.8684048,239.48,239.47,31.90817722]
[1758353248713,10.1984048,239.48,239.47,31.90817722]
[1758353249084,10.1984048,239.48,239.47,0.14817722]
[1758353249284,10.1984048,239.48,239.47,31.90817722]
[1758353249698,10.9184048,239.48,239.47,31.90817722]
[1758353250106,8.96277988,239.48,239.47,31.90817722]
[1758353250408,10.9184048,239.48,239.47,31.90817722]
[1758353252908,10.1984048,239.48,239.47,31.90817722]
[1758353257417,10.9184048,239.48,239.47,31.90817722]
[1758353259405,10.9184048,239.48,239.47,0.14817722]
[1758353259614,10.9184048,239.48,239.47,31.90817722]
[1758353266710,8.96277988,239.48,239.47,31.90817722]
[1758353266917,10.9184048,239.48,239.47,31.90817722]
[1758353275824,10.9184048,239.48,239.47,0.14817722]
[1758353276015,10.9184048,239.48,239.47,31.90817722]
[1758353276713,8.24277988,239.48,239.47,31.90817722]
[1758353276914,10.8984048,239.48,239.47,31.90817722]
[1758353277825,8.24277988,239.48,239.47,31.90817722]
[1758353278017,10.1984048,239.48,239.47,36.08406564]
[1758353278218,10.1984048,239.48,239.47,4.32406564]
[1758353278425,10.1984048,239.48,239.47,36.06406564]
[1758353279120,8.24277988,239.48,239.47,36.58406564]
[1758353280624,8.24277988,239.48,239.47,36.06406564]
[1758353286422,2.81622457,239.48,239.47,36.58406564]
[1758353288528,14.50923931,239.51,239.47,36.58406564]
[1758353288825,2.8164108,239.5,239.47,36.58406564]
[1758353289136,2.8164108,239.49,239.47,36.58406564]
[1758353289336,14.50923931,239.51,239.47,36.58406564]
[1758353289537,2.81604853,239.5,239.47,36.58406564]
[1758353289838,2.81604853,239.49,239.47,47.02378669]
[1758353290034,14.50923931,239.51,239.47,47.02378669]
[1758353290227,2.81601194,239.5,239.47,47.02378669]
[1758353290418,2.81601194,239.49,239.47,47.02378669]
[1758353290617,15.21923931,239.51,239.47,47.02378669]
[1758353290831,2.81573371,239.5,239.47,47.02378669]
[1758353291030,2.81573371,239.49,239.47,47.02378669]
[1758353291233,15.21923931,239.51,239.47,47.02378669]
[1758353291436,2.81546096,239.5,239.47,47.02378669]
[1758353291636,2.81546096,239.49,239.47,47.02378669]
[1758353291841,15.21923931,239.51,239.47,47.02378669]
[1758353292025,2.81546096,239.5,239.47,47.02378669]
[1758353292225,2.81546096,239.49,239.47,47.02378669]
[1758353292428,15.21923931,239.51,239.47,47.02378669]
[1758353292621,2.81522103,239.5,239.47,47.02378669]
[1758353292820,2.81522103,239.49,239.47,47.02378669]
[1758353293020,15.21923931,239.51,239.47,47.02378669]
[1758353293235,2.81518496,239.5,239.47,47.02378669]
[1758353293439,2.81518496,239.49,239.47,47.02378669]
[1758353293741,14.51477419,239.51,239.47,47.02378669]
[1758353293921,2.81500951,239.5,239.47,47.02378669]
[1758353294121,2.81500951,239.49,239.47,47.02378669]
[1758353294321,14.51477419,239.51,239.47,47.02378669]
[1758353294642,2.81482549,239.5,239.47,47.02378669]
[1758353294843,2.81482549,239.49,239.47,47.02378669]
[1758353295142,14.51477419,239.51,239.47,47.02378669]
[1758353295442,2.81479535,239.5,239.47,47.02378669]
[1758353295628,2.81479535,239.49,239.47,46.50378669]
[1758353295828,14.51477419,239.51,239.47,46.50378669]
[1758353296030,2.81466317,239.5,239.47,46.50378669]
[1758353296231,2.81466317,239.49,239.47,46.50378669]
[1758353296535,14.51477419,239.51,239.47,46.50378669]
[1758353296840,2.81452164,239.5,239.47,46.50378669]
[1758353297027,2.81452164,239.49,239.47,46.50378669]
[1758353297338,14.51477419,239.51,239.47,46.50378669]
[1758353297537,2.8143979,239.5,239.47,46.50378669]
[1758353297739,2.8143979,239.49,239.47,46.50378669]
[1758353297942,14.51477419,239.51,239.47,46.50378669]
[1758353298147,2.81439724,239.5,239.47,46.50378669]
[1758353298338,2.81439724,239.49,239.47,46.50378669]
[1758353298540,14.51477419,239.51,239.47,46.50378669]
[1758353298734,2.81429624,239.5,239.47,46.50378669]
[1758353299060,2.81429624,239.49,239.47,46.50378669]
[1758353299345,14.51477419,239.51,239.47,46.50378669]
[1758353299538,2.81421013,239.5,239.47,46.50378669]
[1758353299739,2.81421013,239.49,239.47,46.50378669]
[1758353300046,14.51477419,239.51,239.47,46.50378669]
[1758353300239,2.8141955,239.5,239.47,46.50378669]
[1758353300547,2.8141955,239.49,239.47,46.50378669]
[1758353300734,14.51477419,239.51,239.47,46.50378669]
[1758353300934,2.81414159,239.5,239.47,46.50378669]
[1758353301141,2.81414159,239.49,239.47,46.50378669]
[1758353301341,14.51477419,239.51,239.47,46.50378669]
[1758353301551,2.81409084,239.5,239.47,46.50378669]
[1758353301742,2.81409084,239.49,239.47,46.50378669]
[1758353302046,14.51477419,239.51,239.47,46.50378669]
[1758353302347,2.81408739,239.5,239.47,46.50378669]
[1758353302548,2.81408739,239.49,239.47,46.50378669]
[1758353302749,14.51477419,239.51,239.47,46.50378669]
[1758353303051,2.81405444,239.5,239.47,46.50378669]
[1758353303238,2.81405444,239.49,239.47,46.50378669]
[1758353303546,14.51477419,239.51,239.47,46.50378669]
[1758353303751,2.81403687,239.5,239.47,46.50378669]
[1758353304055,2.81403687,239.49,239.47,46.50378669]
[1758353304342,14.51477419,239.51,239.47,46.50378669]
[1758353304543,2.8140342,239.5,239.47,46.50378669]
[1758353304750,2.8140342,239.49,239.47,46.50378669]
[1758353304937,14.51477419,239.51,239.47,46.50378669]
[1758353305140,2.8140342,239.5,239.47,46.50378669]
[1758353305334,2.8140342,239.49,239.47,46.50378669]
[1758353305652,14.51477419,239.51,239.47,46.50378669]
[1758353305948,2.81404604,239.5,239.47,46.50378669]
[1758353306148,2.81404604,239.49,239.47,46.50378669]
[1758353306351,14.51477419,239.51,239.47,46.50378669]
[1758353306548,2.81407287,239.5,239.47,46.50378669]
[1758353306730,2.81407287,239.49,239.47,46.50378669]
[1758353307048,0.69,239.5,239.47,46.50378669]
[1758353307252,2.81410971,239.49,239.47,46.50378669]
[1758353307447,0.69,239.5,239.47,46.50378669]
[1758353307633,2.81411716,239.49,239.47,46.50378669]
[1758353307832,0.69,239.5,239.47,46.50378669]
[1758353308040,2.81411752,239.49,239.47,46.50378669]
[1758353308251,0.69,239.5,239.47,46.50378669]
[1758353308438,2.81417727,239.49,239.47,46.50378669]
[1758353308639,0.69,239.5,239.47,46.50378669]
[1758353308839,2.81417727,239.49,239.47,46.50378669]
[1758353309039,0.69,239.5,239.47,46.50378669]
[1758353309242,2.81423595,239.49,239.47,46.50378669]
[1758353309432,0.69,239.5,239.47,46.50378669]
[1758353309629,2.81425421,239.49,239.48,31.74]
[1758353310064,2.81425421,239.49,239.48,35.91571404]
[1758353310452,3.50425421,239.49,239.48,35.91571404]
[1758353310639,2.81425421,239.49,239.48,35.91571404]
[1758353311165,2.81425421,239.49,239.48,4.17571404]
[1758353311458,2.81425421,239.49,239.48,35.91571404]
[1758353316349,2.81425421,239.49,239.48,49.51130805]
[1758353317862,2.81425421,239.51,239.48,59.95059316]
[1758353318062,2.81565035,239.5,239.48,59.95059316]
[1758353318358,2.81425421,239.51,239.48,59.95059316]
[1758353318545,2.81581676,239.5,239.48,59.95059316]
[1758353318745,2.81425421,239.51,239.48,59.95059316]
[1758353318959,2.8158156,239.5,239.48,59.95059316]
[1758353319141,2.81425421,239.51,239.48,59.95059316]
[1758353319341,2.8161205,239.5,239.48,59.95059316]
[1758353319538,2.81425421,239.51,239.48,59.95059316]
[1758353319756,2.81605596,239.5,239.48,59.95059316]
[1758353319941,3.50425421,239.51,239.48,59.95059316]
[1758353320141,2.81605596,239.5,239.48,59.95059316]
[1758353320363,3.50425421,239.51,239.48,59.95059316]
[1758353320563,2.81635475,239.5,239.48,59.95059316]
[1758353320749,3.50425421,239.51,239.48,59.95059316]
[1758353320950,2.81635475,239.5,239.48,59.95059316]
[1758353321261,3.50425421,239.51,239.48,59.95059316]
[1758353321450,2.81672609,239.5,239.48,59.95059316]
[1758353321648,3.50425421,239.51,239.48,59.95059316]
[1758353321850,2.81672573,239.5,239.48,59.95059316]
[1758353322054,3.50425421,239.51,239.48,59.95059316]
[1758353322353,2.81725926,239.5,239.48,59.95059316]
[1758353322553,0.69,239.51,239.48,59.95059316]
[1758353322756,2.81719381,239.5,239.48,59.95059316]
[1758353322953,0.69,239.51,239.48,28.21059316]
[1758353323256,2.81689831,239.5,239.49,31.74]
[1758353324240,2.81689831,239.5,239.49,35.91553968]
[1758353335768,0.69,239.5,239.49,35.91553968]
[1758353339257,12.55256386,239.53,239.49,35.91553968]
[1758353339457,3.52658537,239.52,239.49,35.91553968]
[1758353339654,2.81658537,239.51,239.49,35.91553968]
[1758353339871,0.71,239.51,239.49,35.91553968]
[1758353340476,12.55256386,239.53,239.49,35.91553968]
[1758353340682,0.71,239.5,239.49,35.91553968]
[1758353342281,0.7,239.52,239.49,46.3543889]
[1758353342584,2.81632325,239.51,239.49,46.3543889]
[1758353342782,12.55256386,239.53,239.49,46.3543889]
[1758353343077,0.7,239.51,239.49,46.3543889]
[1758353352392,2.81688753,239.5,239.49,59.94998291]
[1758353356172,2.81688753,239.5,239.49,28.20998291]
[1758353356375,2.81688753,239.5,239.49,59.92998291]
[1758353361087,3.51688753,239.5,239.49,59.92998291]
[1758353364893,3.51688753,239.5,239.49,59.92998291]
[1758353365067,3.51688753,239.5,239.49,17.77113369]
[1758353365271,3.51688753,239.5,239.49,49.49113369]
[1758353366981,2.81688753,239.5,239.49,49.49113369]
[1758353367694,3.52688753,239.5,239.49,49.49113369]
[1758353368195,2.81688753,239.5,239.49,49.49113369]
[1758353372504,2.81688753,239.5,239.49,35.89553968]
[1758353373897,2.81688753,239.5,239.49,13.59559401]
[1758353374084,2.81688753,239.5,239.49,45.31559401]
[1758353375499,2.81931931,239.5,239.49,49.49113369]
[1758353376116,2.81931931,239.5,239.49,35.89553968]
[1758353379004,2.81931931,239.5,239.49,49.49113369]
[1758353385393,2.81931931,239.5,239.49,35.89553968]
[1758353387426,3.52931931,239.5,239.49,35.89553968]
[1758353387795,3.52931931,239.5,239.48,4.17571404]
[1758353388131,2.81931931,239.49,239.48,17.77130805]
[1758353388299,2.81931931,239.49,239.48,49.49130805]
[1758353388500,3.52931931,239.49,239.48,4.17571404]
[1758353388701,3.52931931,239.49,239.48,35.89571404]
[1758353389025,3.52931931,239.49,239.48,4.17571404]
[1758353389228,3.52931931,239.49,239.48,35.89571404]
[1758353389526,16.08293371,239.49,239.48,35.89571404]
[1758353389817,13.2636144,239.49,239.48,31.72]
[1758353391216,16.08259761,239.49,239.48,31.72]
[1758353391915,13.2636144,239.49,239.48,31.72]
[1758353392620,16.08259955,239.49,239.48,31.72]
[1758353393606,13.2636144,239.49,239.48,31.72]
[1758353394212,16.08260514,239.49,239.48,31.72]
[1758353395916,15.37260514,239.49,239.48,35.89571404]
[1758353399326,15.37260514,239.49,239.48,4.17571404]
[1758353399623,15.37260514,239.49,239.48,35.89571404]
[1758353399927,15.37034369,239.49,239.48,35.89571404]
[1758353401212,16.04034369,239.49,239.48,31.72]
[1758353403331,16.04034369,239.49,239.47,4.32406529]
[1758353403635,13.2236144,239.49,239.48,35.89571404]
[1758353403831,3.48655193,239.49,239.48,4.17571404]
[1758353404037,16.04069166,239.49,239.48,35.89571404]
[1758353405440,16.04069166,239.49,239.48,4.17571404]
[1758353405741,16.04069166,239.49,239.48,35.89571404]
[1758353406510,16.04069166,239.49,239.48,4.17571404]
[1758353406711,16.04069166,239.49,239.48,35.89571404]
[1758353407843,16.04069166,239.49,239.48,4.17571404]
[1758353408051,16.04069166,239.49,239.48,35.89571404]
[1758353421853,16.04069166,239.49,239.48,31.72]
[1758353426438,15.37069166,239.49,239.48,31.72]
[1758353426672,15.37069166,239.49,239.48,45.83559401]
[1758353427059,15.37069166,239.49,239.48,45.31559401]
[1758353428259,16.05069166,239.49,239.48,45.31559401]
[1758353428455,15.37069166,239.49,239.48,49.49130805]
[1758353429168,15.37069166,239.49,239.48,35.89571404]
[1758353429345,15.37069166,239.49,239.48,4.17571404]
[1758353429546,15.37069166,239.49,239.48,35.89571404]
[1758353431640,16.05069166,239.49,239.48,35.89571404]
[1758353432062,16.05069166,239.49,239.48,4.17571404]
[1758353432265,16.05069166,239.49,239.48,35.89571404]
[1758353434647,15.37069166,239.49,239.48,35.89571404]
[1758353435450,15.37069166,239.49,239.48,4.17571404]
[1758353435661,15.37069166,239.49,239.47,13.74377123]
[1758353435662,16.05069166,239.49,239.47,0.14817722]
[1758353435863,16.75505134,239.49,239.48,31.72]
[1758353436040,8.26902919,239.49,239.48,31.72]
[1758353436446,21.47937325,239.49,239.48,31.72]
[1758353437161,21.47937325,239.49,239.47,0.14817722]
[1758353437359,18.66250047,239.49,239.48,31.74]
[1758353437566,8.92115705,239.49,239.48,31.74]
[1758353437955,21.47687304,239.49,239.48,31.74]
[1758353444175,20.22562824,239.49,239.48,31.74]
[1758353444363,21.47687304,239.49,239.48,31.74]
[1758353445069,16.62133336,239.49,239.48,31.74]
[1758353445271,15.37008856,239.49,239.48,31.74]
[1758353445462,16.62133336,239.49,239.47,0.14817722]
[1758353445664,4.74561737,239.48,239.47,0.14817722]
[1758353445860,4.74561737,239.48,239.47,31.88817722]
[1758353446064,6.41964278,239.48,239.47,31.88817722]
[1758353448773,2.81437257,239.48,239.47,36.58406564]
[1758353449279,2.81437257,239.48,239.47,36.06406564]
[1758353456696,2.81437257,239.48,239.47,4.32406564]
[1758353456867,2.81437257,239.48,239.47,36.06406564]
[1758353460170,3.47437257,239.48,239.47,0.14817722]
[1758353460371,3.47437257,239.48,239.47,31.88817722]
[1758353462068,4.72561737,239.48,239.47,31.88817722]
[1758353462469,17.28133336,239.48,239.47,31.88817722]
[1758353463473,17.28133336,239.48,239.47,0.14817722]
[1758353463672,17.28133336,239.48,239.47,31.88817722]
[1758353469576,17.27957838,239.48,239.47,31.88817722]
[1758353475775,17.9838575,239.48,239.47,31.88817722]
[1758353483514,17.9838575,239.48,239.47,0.14817722]
[1758353483515,22.15957154,239.48,239.47,0.14817722]
[1758353483807,25.67534353,239.48,239.47,31.88817722]
[1758353484893,25.67534353,239.48,239.47,0.14817722]
[1758353485387,25.67534353,239.48,239.47,31.88817722]
[1758353485981,25.67534353,239.48,239.47,0.14817722]
[1758353486383,25.95966667,239.48,239.47,0.14817722]
[1758353486602,22.44389468,239.48,239.46,0.2]
[1758353486794,4.76814151,239.47,239.46,31.98]
[1758353486996,5.44814151,239.47,239.46,31.98]
[1758353487305,18.00648548,239.47,239.46,31.98]
[1758353487595,22.1823739,239.47,239.46,31.98]
[1758353488586,20.22684998,239.47,239.46,31.98]
[1758353488786,25.69832897,239.47,239.46,31.98]
[1758353490285,25.69832897,239.47,239.46,0.2]
[1758353493490,23.74280505,239.47,239.46,0.2]
[1758353493689,25.69832897,239.47,239.46,0.2]
[1758353495482,22.1823739,239.47,239.46,0.2]
[1758353508310,25.69832897,239.47,239.46,0.2]
[1758353509618,22.1823739,239.47,239.46,0.2]
[1758353514023,15.37096156,239.47,239.46,0.72]
[1758353514200,15.37096156,239.47,239.46,4.8960628]
[1758353514724,2.81261759,239.47,239.46,4.8960628]
[1758353520502,2.81261759,239.47,239.46,36.6760628]
[1758353524430,2.81261759,239.47,239.46,36.1560628]
[1758353528205,2.81261759,239.47,239.46,4.3760628]
[1758353528413,2.81261759,239.47,239.46,36.1360628]
[1758353530526,2.81261759,239.47,239.46,4.3760628]
[1758353535732,3.48261759,239.47,239.46,4.3760628]
[1758353536533,2.81261759,239.47,239.46,4.3760628]
[1758353538320,2.81261759,239.47,239.46,4.8960628]
[1758353540334,2.81261759,239.47,239.46,4.3760628]
[1758353545234,2.81261759,239.47,239.46,0.2]
[1758353546036,3.52261759,239.47,239.46,0.2]
[1758353548123,2.81261759,239.47,239.46,0.2]
[1758353551322,2.81242071,239.47,239.46,0.2]
[1758353551537,3.52242071,239.47,239.46,0.2]
[1758353554647,4.77381393,239.47,239.46,0.2]
[1758353554946,8.95000019,239.47,239.46,0.2]
[1758353555839,13.12588861,239.47,239.46,0.2]
[1758353557535,16.64141449,239.47,239.46,0.2]
[1758353559148,13.12588861,239.47,239.46,0.2]
[1758353561846,16.64141449,239.47,239.46,0.2]
[1758353566061,31.2,239.45,239.44,0.2]
[1758353566360,35.26381393,239.45,239.44,0.2]
[1758353566542,35.97381393,239.45,239.44,0.2]
[1758353566742,37.6481897,239.45,239.44,0.2]
[1758353567352,41.82442691,239.45,239.44,0.2]